Cogmind - Beta 17 @@@ ROGUE MODE // 2026.07.08 @ 14:35:37 Player: IsAway Result: Destroyed by G-47 Trooper with Particle Gun Performance ------------- Evolutions (0) 0 Regions Visited (4) 800 Robots Destroyed (8) 40 Value Destroyed (104) 104 Prototype IDs (0) 0 Alien Tech Used (0) 0 Bonus (0) 0 TOTAL SCORE: 944 Bonus ------- None Cogmind --------- Core Integrity 0/250 Matter 243/300 Energy 100/100 System Corruption 2% Temperature Cool (44) Movement Core (50) Location -9/Mines Parts ------- > --- POWER (1) -------- (None) > --- PROPULSION (2) --- (None) > --- UTILITY (2) ------ (None) > --- WEAPON (2) ------- (None) > --- INVENTORY (5) ---- Fission Core Small Storage Unit Medium Battery (150) Medium Laser Mining Laser Peak State ------------ > --- POWER ------------ Light Ion Engine > --- PROPULSION ------- Wheel Wheel > --- UTILITY ---------- Large Storage Unit Improved Terrain Scanner > --- WEAPON ----------- Medium Laser Mining Laser > --- INVENTORY -------- Light Ion Engine Fission Core Light Fission Core Small Storage Unit Large Matter Pod Signal Interpreter Seismic Detector Core Shielding Medium Laser Rocket Launcher Mining Laser [Rating: 11] Favorites ----------- Power Light Ion Engine Engine Light Ion Engine Propulsion Wheel Wheel Wheel Utility High-capacity Storage Unit Device Improved Terrain Scanner Storage High-capacity Storage Unit Protection Core Shielding Weapon Medium Laser Energy Gun Medium Laser Special Weapon Mining Laser Build | -11 -10 -10 -10 -9 ------- Run | Yrd Mat Min Exi Min Slots Evolved . | . . . . . Power . | . . . . . Propulsion . | . . . . . Utility . | . . . . . Weapon . | . . . . . Parts Attached 17 | 7 . 6 4 . Power 2 | 1 . . 1 . Engine 2 | 1 . . 1 . Core . | . . . . . Reactor . | . . . . . Propulsion 4 | 2 . 2 . . Treads . | . . . . . Leg . | . . . . . Wheel 4 | 2 . 2 . . Hover . | . . . . . Flight . | . . . . . Utility 6 | 2 . 2 2 . Device 2 | 1 . . 1 . Storage 3 | 1 . 1 1 . Processor . | . . . . . Hackware . | . . . . . Protection 1 | . . 1 . . Artifact . | . . . . . Weapon 5 | 2 . 2 1 . Energy Gun 3 | 2 . 1 . . Energy Cannon . | . . . . . Ballistic Gun . | . . . . . Ballistic Cannon . | . . . . . Launcher . | . . . . . Special Weapon 2 | . . 1 1 . Impact Weapon . | . . . . . Slashing Weapon . | . . . . . Piercing Weapon . | . . . . . Special Melee Weapon . | . . . . . Unidentified Prototypes . | . . . . . Parts Lost 3 | . . 2 . 1 Power 1 | . . 1 . . Propulsion 1 | . . 1 . . Utility . | . . . . . Weapon 1 | . . . . 1 Highest Loss Streak 2 | . . 2 . 1 To Critical Strikes . | . . . . . Average Backups 13 | 2 6 12 15 15 Power 2 | . 1 2 2 3 Propulsion 1 | . 1 3 . . Utility 6 | . 3 4 7 9 Weapon 3 | . 1 2 4 3 Tool/Special . | . . . . . Unused Backups 15 | . . . 4 11 Power 4 | . . . 1 3 Propulsion 3 | . . . 3 . Utility 7 | . . . . 7 Weapon 1 | . . . . 1 Tool/Special . | . . . . . Average Slot Usage (%) 83 | . 100 93 73 100 Engine 12 | . 14 9 13 14 Wheel 27 | . 28 26 28 28 Device 12 | . 14 11 13 11 Storage 14 | . 14 14 14 14 Protection 1 | . . 2 . 3 Energy Gun 10 | . 28 22 1 14 Special Weapon 3 | . . 5 1 14 Peak Build Rating 11 | 7 8 8 11 9 Average Rating 8 | 5 7 7 9 8 On Entrance 6 | . 7 8 7 9 Avg Prop Armor Cover (%) . | . . . . . Naked Turns . | . . . . . Heaviest Build 47 | 13 13 28 47 47 Greatest Support 26 | 26 26 26 20 20 Greatest Overweight (x) 2 | . . 2 2 2 Average Overweight (x) 1 | . . 1 1 1 Largest Inventory Capacity 20 | 8 8 15 20 20 Average Capacity 16 | 7 8 14 19 20 Most Carried 18 | 6 8 15 18 15 Average Carried 13 | 2 6 13 15 15 Final Capacity 20 | 8 8 15 20 5 Final Carried 15 | 5 8 15 15 5 Class Distribution -------------------- 57% | Scavenger-Mutant 42% | Mutant Dominant Class ---------------- Mutant | -10/Materials Mutant | -10/Mines Scavenger-Mutant | -10/Exiles Scavenger-Mutant | -9/Mines Resources | -11 -10 -10 -10 -9 ----------- Run | Yrd Mat Min Exi Min Matter Collected 500 | 270 . 200 30 . Remotely . | . . . . . Salvage Created 253 | 145 60 48 . . Parts 15 | 9 . 6 . . Haulers Intercepted . | . . . . . Recyclers Shooed . | . . . . . Parts Field Recycled . | . . . . . Retrieved Matter . | . . . . . Parts Self-Destructed . | . . . . . Prevented . | . . . . . Parts Restored . | . . . . . Kills | -11 -10 -10 -10 -9 ------- Run | Yrd Mat Min Exi Min Combat Hostiles Destroyed 4 | . 1 3 . . Guns 4 | . 1 3 . . Classes Destroyed 4 | 2 1 1 . . Tunneler 3 | 3 . . . . Recycler 1 | 1 . . . . Swarmer 3 | . . 3 . . Grunt 1 | . 1 . . . Best Kill Streak 3 | 2 1 3 . . Combat Bots Only 3 | . 1 3 . . Max Kills in Single Turn 2 | 1 1 2 . . Gunslinging 1 | . . 1 . . Exploded . | . . . . . Melee . | . . . . . Uniques/NPCs Destroyed . | . . . . . Combat | -11 -10 -10 -10 -9 -------- Run | Yrd Mat Min Exi Min Hostile Shots Fired 44 | . 26 10 . 8 Missed 9 | . 5 4 . . Hits 35 | . 21 6 . 8 Projectile 35 | . 21 6 . 8 Damage Taken 705 | . 272 327 . 106 Core 258 | . 95 139 . 24 Absorbed by Shields . | . . . . . Redirected to Shielding 2 | . . . . 2 Core Remaining (%) 100 | 100 . . . . Volleys Fired 30 | 8 10 10 . 2 Largest 2 | 2 2 2 . 2 Hottest 150 | 100 100 150 . 150 Shots Fired 60 | 16 20 20 . 4 Gun 50 | 16 20 12 . 2 Cannon . | . . . . . Launcher . | . . . . . Special 10 | . . 8 . 2 Kinetic . | . . . . . Thermal 60 | 16 20 20 . 4 Explosive . | . . . . . Electromagnetic . | . . . . . Robot Hit Streak 6 | 4 6 5 . . Robot Miss Streak 2 | 2 2 1 . . Penetration Max . | . . . . . Secondary Targets 1 | . . 1 . . Max Gunslinging Chain 1 | . . 1 . . Shots Hit Robots 27 | 10 12 5 . . Core Hits 13 | 5 4 4 . . Critical Kills . | . . . . . Critical Parts Destroyed . | . . . . . Critical Strikes . | . . . . . Melee Attacks . | . . . . . Impact . | . . . . . Slashing . | . . . . . Piercing . | . . . . . Sneak Attacks . | . . . . . Combat Hostiles . | . . . . . Follow-up Attacks . | . . . . . Damage Inflicted 358 | 136 149 73 . . Guns 334 | 136 149 49 . . Cannons . | . . . . . Explosions . | . . . . . Melee . | . . . . . Ramming . | . . . . . Kinetic . | . . . . . Thermal 358 | 136 149 73 . . Explosive . | . . . . . Electromagnetic . | . . . . . Impact . | . . . . . Slashing . | . . . . . Piercing . | . . . . . Highest Corruption 2 | . . 2 2 2 Average Corruption 2 | . . 2 2 2 Corruption Purged . | . . . . . Corruption Blocked . | . . . . . Effects 10 | . . 1 6 3 Message Errors 4 | . . 1 3 . Matter Fused 3 | . . . . 3 Energy Discharges 1 | . . . 1 . Parts Fused 1 | . . . 1 . Data Loss (minor) 1 | . . . 1 . Overload Shots . | . . . . . Overflow Damage . | . . . . . Projectiles . | . . . . . Explosions . | . . . . . Melee . | . . . . . Knockbacks . | . . . . . Impact . | . . . . . Kinetic . | . . . . . Secondary . | . . . . . Self-Inflicted Damage . | . . . . . Shots . | . . . . . Rammed . | . . . . . Targets Rammed . | . . . . . Kicked . | . . . . . Crushed . | . . . . . Highest Temperature 399 | 234 399 265 . 80 Average Temperature 147 | 101 228 128 . 44 Received Heat Transfer 216 | . 156 . . 60 Siege Activations . | . . . . . Martial Activations . | . . . . . Shielding Activations . | . . . . . Robots Disrupted . | . . . . . Combat Hostiles . | . . . . . Robots Corrupted . | . . . . . Combat Hostiles . | . . . . . Parts Fried . | . . . . . Impact Corruptions . | . . . . . Robots Melted . | . . . . . Combat Hostiles . | . . . . . Parts Melted . | . . . . . Heat Transferred 1049 | 407 444 198 . . Parts Sabotaged . | . . . . . Parts Stolen . | . . . . . Parts Stripped . | . . . . . Power Chain Reactions . | . . . . . Alert | -11 -10 -10 -10 -9 ------- Run | Yrd Mat Min Exi Min Maximum Alert Level . | . . . . . Low Security (%) 100 | 100 100 100 . 100 Level 1 . | . . . . . Level 2 . | . . . . . Level 3 . | . . . . . Level 4 . | . . . . . Level 5 . | . . . . . High Security . | . . . . . Max Security . | . . . . . Peak Influence 70 | 10 30 70 . . Initial 7 | . . 7 . . Average 9 | 2 6 16 . . Influence Increases 126 | 20 30 75 . 1 Destroy 0b10 Robot/C 80 | . 20 60 . . Destroy 0b10 Robot/NC 20 | 20 . . . . Destroy Leader 20 | . 10 10 . . Destroy Structure 6 | . . 5 . 1 Influence Decreases 126 | 20 10 95 . 1 Entered New Map 13 | . . 13 . . Time Decay 112 | 20 10 81 . 1 Lost Part 1 | . . 1 . . Squads Dispatched 1 | . 1 . . . Investigation . | . . . . . Extermination . | . . . . . Reinforcement 1 | . 1 . . . Assault . | . . . . . Garrison . | . . . . . Intercept . | . . . . . Searches Triggered . | . . . . . Construction Impeded . | . . . . . Haulers Reinforced . | . . . . . Active Scanning Responses . | . . . . . Cargo Convoy Interrupts . | . . . . . Stealth | -11 -10 -10 -10 -9 --------- Run | Yrd Mat Min Exi Min Distress Signals . | . . . . . Communications Jammed . | . . . . . Distress Signals . | . . . . . Times Spotted 18 | . 4 12 . 2 Peak Tracking Total 20 | . 2 20 . 2 Tactical Retreats . | . . . . . Traps | -11 -10 -10 -10 -9 ------- Run | Yrd Mat Min Exi Min Traps Triggered . | . . . . . Indirectly . | . . . . . Trap Hack Attempts . | . . . . . Triggered . | . . . . . Disarmed . | . . . . . Reprogrammed . | . . . . . Reused . | . . . . . Traps Extracted . | . . . . . Installed . | . . . . . Triggered . | . . . . . Machines | -11 -10 -10 -10 -9 ---------- Run | Yrd Mat Min Exi Min Machines Disabled . | . . . . . Max in Single Turn . | . . . . . Machines Repaired . | . . . . . Machines Dismantled . | . . . . . Machines Sabotaged . | . . . . . Overloaded Fab Kills . | . . . . . Hacking | -11 -10 -10 -10 -9 --------- Run | Yrd Mat Min Exi Min Machines Accessed 2 | . . 1 1 . Terminals 1 | . . 1 . . Fabricators . | . . . . . Repair Stations . | . . . . . Recycling Units . | . . . . . Scanalyzers . | . . . . . Garrison Access . | . . . . . Total Hacks 26 | . . 3 23 . Successful 26 | . . 3 23 . Failed . | . . . . . Catastrophic . | . . . . . Database Lockouts . | . . . . . Manual . | . . . . . Terminals 3 | . . 3 . . Fabricators . | . . . . . Repair Stations . | . . . . . Recycling Units . | . . . . . Scanalyzers . | . . . . . Garrison Access . | . . . . . Terminal Hacks 26 | . . 3 23 . Record 25 | . . 2 23 . Dispatch Records 1 | . . 1 . . Fabricator Hacks . | . . . . . Repair Station Hacks . | . . . . . Recycling Unit Hacks . | . . . . . Scanalyzer . | . . . . . Garrison Access Hacks . | . . . . . Unauthorized Hacks . | . . . . . Terminals . | . . . . . Fabricators . | . . . . . Repair Stations . | . . . . . Recycling Units . | . . . . . Scanalyzers . | . . . . . Garrison Access . | . . . . . Data Cores Recovered . | . . . . . Used . | . . . . . Hacking Detections 1 | . . 1 . . Full Trace Events . | . . . . . Feedback Events . | . . . . . Feedback Blocked . | . . . . . Robot Schematics Acquired . | . . . . . Robots Built . | . . . . . Authchips . | . . . . . Time . | . . . . . Total Robot Build Rating . | . . . . . Part Schematics Acquired . | . . . . . Parts Built . | . . . . . Authchips . | . . . . . Time . | . . . . . Total Part Build Rating . | . . . . . Part Studies Acquired . | . . . . . Parts Repaired . | . . . . . Time . | . . . . . Parts Recycled . | . . . . . Recycled Matter . | . . . . . Retrieved Matter . | . . . . . Retrieved Components . | . . . . . Parts Scanalyzed . | . . . . . Part Schematics Acquired . | . . . . . Parts Damaged . | . . . . . Bothacking | -11 -10 -10 -10 -9 ------------ Run | Yrd Mat Min Exi Min Used RIF Installer . | . . . . . Robots Hacked . | . . . . . Non-combat . | . . . . . Combat . | . . . . . Robot Hacks Applied . | . . . . . Relay Couplers Released . | . . . . . Fabnet Peak Effective % . | . . . . . Robots Rewired . | . . . . . Allies Hacked . | . . . . . Hacks Repelled . | . . . . . Allies | -11 -10 -10 -10 -9 -------- Run | Yrd Mat Min Exi Min Total Allies . | . . . . . Largest Group . | . . . . . Highest-Rated Group . | . . . . . Highest-Rated Ally . | . . . . . Total Orders . | . . . . . Ally Attacks . | . . . . . Total Damage . | . . . . . Kills . | . . . . . Allies Corrupted . | . . . . . Allies Melted . | . . . . . Intel | -11 -10 -10 -10 -9 ------- Run | Yrd Mat Min Exi Min Active Infowar (turns) 1119 | 8 84 278 646 103 Terrain 641 | . . . 641 . Seismic 478 | 8 84 278 5 103 Robot Analysis Total . | . . . . . Derelict Logs Recovered 2 | . . 1 . 1 Drone Launches . | . . . . . Drone Recoveries . | . . . . . Exploration | -11 -10 -10 -10 -9 ------------- Run | Yrd Mat Min Exi Min Turns Passed 1322 | 92 84 337 676 133 Spaces Moved 1056 | 44 57 240 608 107 Core 11 | 10 . . . 1 Treads . | . . . . . Legs . | . . . . . Wheels 1045 | 34 57 240 608 106 Hover . | . . . . . Flight . | . . . . . Fastest Speed 50 | 50 90 90 95 50 Average Speed 103 | 80 90 96 108 109 Slowest Speed 110 | 90 90 110 110 110 Overloaded Moves . | . . . . . Propulsion Burnouts . | . . . . . Robots Hopped . | . . . . . Potential Cave-ins 2 | . . 2 . . Cave-ins Triggered 1 | . . 1 . . Exploration Rate (%) 36 | 4 16 55 81 26 Regions Visited 4 Branch Regions 3 Pre-discovered Areas 1 | . . . 1 . Known Exits Taken . | . . . . . Unknown Exits Taken 4 | 1 1 1 1 . Scrap Searched 1 | . . 1 . . Spaces Dug 9 | . . 7 . 2 Terrain Destroyed 9 | . . 7 . 2 Melee . | . . . . . Projectile 9 | . . 7 . 2 AOE . | . . . . . Terrain Rammed . | . . . . . Walls Destroyed . | . . . . . Machines Disabled . | . . . . . Actions | -11 -10 -10 -10 -9 --------- Run | Yrd Mat Min Exi Min Total 1203 | 83 69 308 629 114 Wait 63 | 14 . 43 2 4 Move 1052 | 43 56 239 607 107 Hop . | . . . . . Pick Up 28 | 11 3 7 7 . Fast Attach 2 | 1 . 1 . . Attach 9 | 6 . . 3 . Detach 2 | . . . 2 . Swap 9 | . . 5 3 1 Drop 7 | . . 2 5 . Fire 30 | 8 10 10 . 2 Melee . | . . . . . Ram . | . . . . . Kick . | . . . . . Crush . | . . . . . Escape Stasis . | . . . . . Rewire 1 | . . 1 . . Trap . | . . . . . Miscellaneous . | . . . . . Route ------- -11/Scrapyard -10/Materials -10/Mines (discovered 2 exits: Mat / *Exi) -10/Exiles (discovered 2 exits: [*Min x2]) -9/Mines History --------- Turn | Location | Event 18 | -11/Scrapyard | Discovered new exit (range 14) 93 | -11/Scrapyard | Entered Materials 165 | -10/Materials | Discovered new exit (range 7) 177 | -10/Materials | Entered Mines 330 | -10/Mines | Build established: Mutant 368 | -10/Mines | Assembled infested the area 404 | -10/Mines | Crushed by falling debris 404 | -10/Mines | Core integrity fell below 50% 404 | -10/Mines | Core integrity fell below 20% 423 | -10/Mines | Met 8R-AWN 466 | -10/Mines | Identified exit to Materials 500 | -10/Mines | Discovered new exit (range 5) 510 | -10/Mines | Received a Rocket Launcher from a helpful Derelict 514 | -10/Mines | Entered Exiles 547 | -10/Exiles | Welcomed by 8R-AWN 565 | -10/Exiles | Met EX-HEX 622 | -10/Exiles | Met EX-DEC 652 | -10/Exiles | Learned location of Zion (-7) 731 | -10/Exiles | Discovered new exit (range 14) 814 | -10/Exiles | Visited The Gauntlet 850 | -10/Exiles | Build established: Scavenger-Mutant 1038 | -10/Exiles | Discovered new exit (range 14) 1190 | -10/Exiles | Entered Mines 1217 | -9/Mines | Learned Materials interactive machine intel 1323 | -9/Mines | Released all parts (6) 1323 | -9/Mines | Destroyed by G-47 Trooper with Particle Gun Last Messages --------------- K-01 Serf collects debris. Acquired derelict log, extracted data. Data stored: Materials interactive machine intel. K-01 Serf collects debris. System corrupted: Matter fused (-9). K-01 Serf collects debris. System corrupted: Matter fused (-8). K-01 Serf collects debris. C-30 ARC bursts open, deploying its payload. G-47 Trooper unfolds itself. G-34 Mercenary unfolds itself. K-01 Serf collects debris. System corrupted: Matter fused (-5). Med. Laser destroyed. Released Mining Laser. Released Hcp. Storage Unit. Released Wheel. Released Lgt. Ion Engine. Released Core Shielding. Extracted 1 energy. Map ----- +----------------------------------------------------+ | ????# ## ##??# #????????? | | ????# #??# #?????#??? | | ????# """ #??# #??? ##?? | | ????# """ #??# #?? #?? | | ?????# """ #### ## #?? | | ?????## ## #?? | | ??????# ### ##?? | | ??????# #?#### ####### ##??? | | ??????# #????#$ #?????? ##???? | | ??????# #??? #??????? #????? | | ??????# #?? ## ???????? ????? | | ??????# ### ## ##???????? ???? | | ??????# # ?????????? ??? | | ??????# #### ??????????? ?? | | ??????# ##?? ??????????? ? | | ?????## ### """ ??????????? | | ????## ## """%????????????? | | ???## ## """ ????????????? | | ???# ## ??? ????????????? | | ???## ###????#???????????? | | ????## ##??????????????????? | | ????## #???????????????????? | | ????# ##???????????????????? | | ????# t####??????????????????? | | ????# g!## #??????????????????? | | ????# @g#=#???????????????????? | | ????# !!|*##???????????????????? | | ????# !!!]*#???????????????????? | | ????## !! #???????????????????? | | ?????## ##???????????????????? | | ??????#####????????????????????? | | ???????????????????????????????? | | ???????????????????????????????? | | ???????????????????????????????? | | ???????????????????????????????? | | ???????????????????????????????? | | | | | | | | | | | | | | | | | | | | | | | | | | | | | +----------------------------------------------------+ Best States ------------- Heat Dissipation 25 Energy Generation 10 Energy Capacity 125 Matter Stores 300 Matter Capacity 300 Sight Range 16 Terrain Scan Range 16 Terrain Scan Density 10 Core Shielding 20 Evasion (%) 50 Item Schematics ----------------- None Robot Schematics ------------------ None Fabricated ------------ Nothing Repaired ---------- Nothing Studied --------- None Alien Tech Used ----------------- None Achievements -------------- Hunted Slippery One Challenges ------------ None Game ------ Seed FieldthrustReflexBattery Manual? 0 Play Time 00:23:53 Cumulative 9.4 hours Start 2026.07.08 @ 14:10:16 End 2026.07.08 @ 14:35:37 Sessions 1 Manual Loads 0 Difficulty Rogue Special Mode None Game No. 8 Rogue 8 Adventurer 0 Explorer 0 Win Type - Total 0 Types 0/0/0/0/0/0/0/0/0/0 Lore% 6 Gallery% 9 Achievement% 10 Wizard Run 0 Options --------- Layout 1 ASCII 0 Keyboard 0 Movement Mouse Keybinds 0 Fullscreen 1 Font 18/SmallcapsGlow Map View 51x41 Zoom Use 0% Tactical HUD 0 Map Filters NONE Filters NONE Steam 1 RUN: 60aa5831-b9d8-42ca-9de2-3b24725143bb